fUST/lending_fUST_20240725
["ID","MTS","AMOUNT","RATE_DAILY","PERIOD"]
[333103965,1721869629192,-615.91455088,8.419e-05,2]
[333103966,1721869644115,-1308.29773095,8.419e-05,2]
[333103967,1721869666254,-22975.78771817,8.419e-05,2]
[333103968,1721869666281,-200.0,8.42e-05,2]
[333103969,1721869666308,-250.0,8.918e-05,2]
[333103970,1721869666339,-250.0,9.099e-05,2]
[333103971,1721869666369,-250.0,9.124e-05,2]
[333103972,1721869666399,-250.0,9.149e-05,2]
[333103973,1721869666436,-250.0,9.174e-05,2]
[333103974,1721869666465,-250.0,9.199e-05,2]
[333103975,1721869666493,-250.0,9.224e-05,2]
[333103976,1721869666521,-250.0,9.249e-05,2]
[333103977,1721869666548,-420.0,9.26e-05,2]
[333103978,1721869666574,-420.0,9.26e-05,2]
[333103979,1721869666600,-250.0,9.274e-05,2]
[333103980,1721869666625,-250.0,9.299e-05,2]
[333103981,1721869666650,-250.0,9.324e-05,2]
[333103982,1721869666681,-250.0,9.349e-05,2]
[333103983,1721869666714,-250.0,9.374e-05,2]
[333103984,1721869666739,-250.0,9.399e-05,2]
[333103985,1721869667206,-250.0,9.416e-05,2]
[333103986,1721869667233,-250.0,9.424e-05,2]
[333103987,1721869667259,-250.0,9.448e-05,2]
[333103988,1721869667288,-250.0,9.473e-05,2]
[333103989,1721869667316,-250.0,9.498e-05,2]
[333103990,1721869667344,-250.0,9.523e-05,2]
[333103991,1721869667370,-250.0,9.548e-05,2]
[333103992,1721869667397,-250.0,9.573e-05,2]
[333103993,1721869667425,-400.0,9.79e-05,2]
[333103994,1721869667451,-2824.25834056,9.999e-05,2]
[333103995,1721869667475,-2732.8829132,9.999e-05,2]
[333103996,1721869667499,-783.20081076,9.999e-05,2]
[333103997,1721869667524,-587.0,0.00010186,2]
[333103998,1721869667549,-181.0,0.00010186,2]
[333103999,1721869667573,-516.0,0.00011204,2]
[333104000,1721869667598,-600.0,0.00011567,2]
[333104001,1721869667622,-31086.22371788,0.0001212,2]
[333104002,1721869667647,-493.6852174,0.0001212,2]
[333104003,1721869667675,-200.0,0.00013425,2]
[333104004,1721869667701,-800.0,0.00013539,2]
[333104005,1721869667730,-200.0,0.00013598,2]
[333104006,1721869667758,-150.112233,0.000136,2]
[333104007,1721869667785,-106241.921081,0.00013688,2]
[333104008,1721869667810,-594.34,0.00013698,2]
[333104009,1721869667836,-500.0,0.00013698,2]
[333104010,1721869667859,-500.0,0.00013698,2]
[333104011,1721869667886,-1022.41,0.00013698,2]
[333104012,1721869667911,-1022.41,0.00013698,2]
[333104013,1721869667944,-1022.41,0.00013698,2]
[333104014,1721869667969,-1022.41,0.00013698,2]
[333104015,1721869667996,-1022.41,0.00013698,2]
[333104016,1721869668021,-1022.41,0.00013698,2]
[333104017,1721869668048,-1022.41,0.00013698,2]
[333104018,1721869668074,-1022.41,0.00013698,2]
[333104019,1721869668101,-1022.41,0.00013698,2]
[333104020,1721869668128,-1022.41,0.00013698,2]
[333104021,1721869668155,-1022.41,0.00013698,2]
[333104022,1721869668188,-1022.41,0.00013698,2]
[333104023,1721869668216,-1022.41,0.00013698,2]
[333104024,1721869668244,-1022.41,0.00013698,2]
[333104025,1721869668286,-1022.41,0.00013698,2]
[333104026,1721869668317,-500.0,0.00013698,2]
[333104027,1721869668345,-1022.41,0.00013698,2]
[333104028,1721869668372,-500.0,0.00013698,2]
[333104029,1721869668402,-1022.41,0.00013698,2]
[333104030,1721869668436,-1022.41,0.00013698,2]
[333104031,1721869668464,-1022.41,0.00013698,2]
[333104032,1721869668492,-1022.41,0.00013698,2]
[333104033,1721869668520,-1022.41,0.00013698,2]
[333104034,1721869668549,-1022.41,0.00013698,2]
[333104035,1721869668577,-1022.41,0.00013698,2]
[333104036,1721869668605,-1022.45828441,0.00013698,2]
[333104037,1721869668631,-1173.68,0.00013698,2]
[333104038,1721869668655,-500.0,0.00013698,2]
[333104039,1721869668688,-500.0,0.00013698,2]
[333104040,1721869668716,-500.0,0.00013698,2]
[333104041,1721869668744,-500.0,0.00013698,2]
[333104042,1721869668770,-500.0,0.00013698,2]
[333104043,1721869668797,-500.0,0.00013698,2]
[333104044,1721869668825,-1238.03,0.00013698,2]
[333104045,1721869668849,-470.74796321,0.00013698,2]
[333104046,1721869668874,-500.0,0.00013698,2]
[333104047,1721869668899,-500.0,0.00013698,2]
[333104048,1721869668930,-500.0,0.00013698,2]
[333104049,1721869668955,-500.0,0.00013698,2]
[333104050,1721869668982,-500.0,0.00013698,2]
[333104051,1721869669007,-500.0,0.00013698,2]
[333104052,1721869669032,-500.0,0.00013698,2]
[333104053,1721869669057,-500.0,0.00013698,2]
[333104054,1721869669082,-500.0,0.00013698,2]
[333104055,1721869669111,-589.81062813,0.00013698,2]
[333104056,1721869669137,-500.0,0.00013698,2]
[333104057,1721869669161,-500.0,0.00013698,2]
[333104058,1721869669188,-171.17220993,0.00013698,2]
[333104059,1721869669216,-500.0,0.00013698,2]
[333104060,1721869669241,-467.3288532,0.00013698,2]
[333104061,1721869669265,-500.0,0.00013698,2]
[333104062,1721869669289,-500.0,0.00013698,2]
[333104063,1721869669315,-500.0,0.00013698,2]
[333104064,1721869669344,-500.0,0.00013698,2]
[333104065,1721869669372,-500.0,0.00013698,2]
[333104066,1721869669398,-500.0,0.00013698,2]
[333104067,1721869669427,-500.0,0.00013698,2]
[333104068,1721869669452,-500.0,0.00013698,2]
[333104069,1721869669476,-500.0,0.00013698,2]
[333104070,1721869669500,-500.0,0.00013698,2]
[333104071,1721869669526,-500.0,0.00013698,2]
[333104072,1721869669550,-500.0,0.00013698,2]
[333104073,1721869669574,-499.99813913,0.00013698,2]
[333104074,1721869669598,-500.0,0.00013698,2]
[333104075,1721869669624,-500.0,0.00013698,2]
[333104076,1721869669651,-742.92,0.00013698,2]
[333104077,1721869669681,-500.0,0.00013698,2]
[333104078,1721869669706,-534.98714057,0.00013698,2]
[333104079,1721869669730,-500.0,0.00013698,2]
[333104080,1721869669759,-500.0,0.00013698,2]
[333104081,1721869669785,-500.0,0.00013698,2]
[333104082,1721869669811,-953.52,0.00013698,2]
[333104083,1721869669836,-500.0,0.00013698,2]
[333104084,1721869669860,-500.0,0.00013698,2]
[333104085,1721869669884,-503.47695568,0.00013698,2]
[333104086,1721869669910,-456.68955826,0.00013698,2]
[333104087,1721869669936,-500.0,0.00013698,2]
[333104088,1721869669959,-500.0,0.00013698,2]
[333104089,1721869669983,-500.0,0.00013698,2]
[333104090,1721869670007,-500.0,0.00013698,2]
[333104091,1721869670032,-500.0,0.00013698,2]
[333104092,1721869670057,-500.0,0.00013698,2]
[333104093,1721869670080,-500.0,0.00013698,2]
[333104094,1721869670103,-500.0,0.00013698,2]
[333104095,1721869670127,-510.54009372,0.00013698,2]
[333104096,1721869670151,-500.0,0.00013698,2]
[333104097,1721869670179,-500.0,0.00013698,2]
[333104098,1721869670204,-2045.95,0.00013698,2]
[333104099,1721869670229,-500.0,0.00013698,2]
[333104100,1721869670255,-500.0,0.00013698,2]
[333104101,1721869670282,-500.0,0.00013698,2]
[333104102,1721869670311,-500.0,0.00013698,2]
[333104103,1721869670339,-500.0,0.00013698,2]
[333104104,1721869670366,-500.0,0.00013698,2]
[333104105,1721869670393,-500.0,0.00013698,2]
[333104106,1721869670421,-500.0,0.00013698,2]
[333104107,1721869670456,-500.0,0.00013698,2]
[333104108,1721869670483,-500.0,0.00013698,2]
[333104109,1721869670510,-2202.29,0.00013698,2]
[333104110,1721869670536,-951.06,0.00013698,2]
[333104111,1721869670566,-500.0,0.00013698,2]
[333104112,1721869670594,-500.0,0.00013698,2]
[333104113,1721869670622,-500.0,0.00013698,2]
[333104114,1721869670649,-500.0,0.00013698,2]
[333104115,1721869670681,-179.56093244,0.00013698,2]
[333104116,1721869670708,-500.0,0.00013698,2]
[333104117,1721869670737,-500.0,0.00013698,2]
[333104118,1721869670764,-500.0,0.00013698,2]
[333104119,1721869670791,-500.0,0.00013698,2]
[333104120,1721869670819,-500.0,0.00013698,2]
[333104121,1721869670846,-500.0,0.00013698,2]
[333104122,1721869670872,-503.36448593,0.00013698,2]
[333104123,1721869670896,-3253.45,0.00013698,2]
[333104124,1721869670920,-500.0,0.00013698,2]
[333104125,1721869670951,-668.84,0.00013698,2]
[333104126,1721869670973,-529.26846187,0.00013698,2]
[333104127,1721869670996,-542.81228717,0.00013698,2]
[333104128,1721869671272,-500.0,0.00013698,2]
[333104129,1721869671299,-500.0,0.00013698,2]
[333104130,1721869671323,-1653.23,0.00013698,2]
[333104131,1721869671350,-375.4855311,0.00013698,2]
[333104132,1721869671375,-1460.88,0.00013698,2]
[333104133,1721869671399,-535.05556206,0.00013698,2]
[333104134,1721869671428,-1901.83,0.00013698,2]
[333104135,1721869671452,-1028.92,0.00013698,2]
[333104136,1721869671476,-500.0,0.00013698,2]
[333104137,1721869671500,-500.0,0.00013698,2]
[333104138,1721869671524,-500.0,0.00013698,2]
[333104139,1721869671547,-500.0,0.00013698,2]
[333104140,1721869671571,-505.50910385,0.00013698,2]
[333104141,1721869671595,-500.0,0.00013698,2]
[333104142,1721869671619,-500.0,0.00013698,2]
[333104143,1721869671644,-345.54007751,0.00013698,2]
[333104144,1721869671666,-449.97490833,0.00013698,2]
[333104145,1721869671695,-500.0,0.00013698,2]
[333104146,1721869671721,-500.0,0.00013698,2]
[333104147,1721869671751,-500.0,0.00013698,2]
[333104148,1721869671775,-500.0,0.00013698,2]
[333104149,1721869671799,-608.3971694,0.00013698,2]
[333104150,1721869671825,-533.17,0.00013698,2]
[333104151,1721869671850,-500.0,0.00013698,2]
[333104152,1721869671876,-500.0,0.00013698,2]
[333104153,1721869671901,-425.98261447,0.00013698,2]
[333104154,1721869671934,-500.0,0.00013698,2]
[333104155,1721869671958,-500.0,0.00013698,2]
[333104156,1721869671982,-397.65130446,0.00013698,2]
[333104157,1721869672010,-555.73503457,0.00013698,2]
[333104158,1721869672036,-500.0,0.00013698,2]
[333104159,1721869672062,-500.0,0.00013698,2]
[333104160,1721869672088,-500.0,0.00013698,2]
[333104161,1721869672115,-1686.1,0.00013698,2]
[333104162,1721869672140,-500.0,0.00013698,2]
[333104163,1721869672166,-880.07,0.00013698,2]
[333104164,1721869672194,-664.59,0.00013698,2]
[333104165,1721869672218,-500.0,0.00013698,2]
[333104166,1721869672244,-500.0,0.00013698,2]
[333104167,1721869672271,-500.0,0.00013698,2]
[333104168,1721869672296,-500.0,0.00013698,2]
[333104169,1721869672325,-500.0,0.00013698,2]
[333104170,1721869672353,-500.0,0.00013698,2]
[333104171,1721869672384,-500.0,0.00013698,2]
[333104172,1721869672414,-500.0,0.00013698,2]
[333104173,1721869672446,-500.0,0.00013698,2]
[333104174,1721869672474,-500.0,0.00013698,2]
[333104175,1721869672501,-500.0,0.00013698,2]
[333104176,1721869672526,-500.0,0.00013698,2]
[333104177,1721869672557,-500.0,0.00013698,2]
[333104178,1721869672589,-500.0,0.00013698,2]
[333104179,1721869672619,-500.0,0.00013698,2]
[333104180,1721869672648,-500.0,0.00013698,2]
[333104181,1721869672679,-500.0,0.00013698,2]
[333104182,1721869672707,-500.0,0.00013698,2]
[333104183,1721869672736,-500.0,0.00013698,2]
[333104184,1721869672765,-500.0,0.00013698,2]
[333104185,1721869672794,-500.0,0.00013698,2]
[333104186,1721869672823,-500.0,0.00013698,2]
[333104187,1721869672853,-500.0,0.00013698,2]
[333104188,1721869672881,-500.0,0.00013698,2]
[333104189,1721869672910,-492.86999999,0.00013698,2]
[333104190,1721869672937,-500.0,0.00013698,2]
[333104191,1721869672962,-1160.68,0.00013698,2]
[333104192,1721869672988,-500.0,0.00013698,2]
[333104193,1721869673012,-500.0,0.00013698,2]
[333104194,1721869673037,-500.0,0.00013698,2]
[333104195,1721869673063,-500.0,0.00013698,2]
[333104196,1721869673088,-1372.06,0.00013698,2]
[333104197,1721869673113,-332.47066864,0.00013698,2]
[333104198,1721869745143,-273.37336231,9.9e-05,2]
[333104199,1721869745167,-200.0,9.9e-05,2]
[333104200,1721869745191,-187.90374407,0.00010205,2]
[333104201,1721869745214,-674.23,0.00010959,2]
[333104202,1721869745237,-400.0,0.0001127,2]
[333104203,1721869751505,273.37336231,9.9e-05,2]
[333104204,1721869760740,273.37336231,9.9e-05,2]
[333104206,1721869768916,273.37336231,9.9e-05,2]
[333104207,1721869777513,273.37336231,9.9e-05,2]
[333104208,1721869779847,154.68290005,0.00012119,2]
[333104209,1721869782622,200.0,0.0001,2]
[333104210,1721869783161,400.0,0.0001137,2]
[333104211,1721869786498,273.37336231,9.9e-05,2]
[333104212,1721869792632,1625.46116471,9.9e-05,2]
[333104213,1721869794339,157.16201731,9.9e-05,2]
[333104272,1721869839955,-116.211345,9.9e-05,2]
[333104274,1721869839966,-351.94,0.00010959,2]
[333104276,1721869839977,-154.66746495,0.00012119,2]
[333104278,1721869839987,-245.67119005,0.00013147,2]
[333104279,1721869840000,-354.32880995,0.00013147,2]
[333104281,1721869840010,-674.40639402,0.00013598,2]
[333104283,1721869840022,-425.60625132,0.00013598,2]
[333104285,1721869840032,-200.0,0.00013598,2]
[333104288,1721869840042,-300.0,0.00013687,2]
[333104290,1721869840052,-1509.67190902,0.00013688,2]
[333104292,1721869840069,-1068.88691985,0.00013688,2]
[333104294,1721869840095,-261.0,0.00013688,2]
[333104295,1721869840108,-2610.54855304,0.00013688,2]
[333104322,1721869840436,-24145.85634759,0.00013688,2]
[333104324,1721869840446,-1112.56933136,0.00013698,2]
[333104326,1721869840456,-500.0,0.00013698,2]
[333104328,1721869840466,-500.0,0.00013698,2]
[333104330,1721869840475,-500.0,0.00013698,2]
[333104332,1721869840485,-569.6863633,0.00013698,2]
[333104334,1721869840495,-500.0,0.00013698,2]
[333104336,1721869840505,-647.17,0.00013698,2]
[333104338,1721869840515,-693.35,0.00013698,2]
[333104341,1721869840533,-500.0,0.00013698,2]
[333104343,1721869840546,-500.0,0.00013698,2]
[333104345,1721869840556,-500.0,0.00013698,2]
[333104347,1721869840570,-500.0,0.00013698,2]
[333104349,1721869840579,-500.46070068,0.00013698,2]
[333104351,1721869840591,-500.0,0.00013698,2]
[333104353,1721869840602,-500.0,0.00013698,2]
[333104355,1721869840614,-586.19,0.00013698,2]
[333104358,1721869840624,-500.0,0.00013698,2]
[333104361,1721869840636,-500.0,0.00013698,2]
[333104365,1721869840649,-500.0,0.00013698,2]
[333104366,1721869840659,-723.03,0.00013698,2]
[333104368,1721869840670,-500.0,0.00013698,2]
[333104370,1721869840681,-1156.99,0.00013698,2]
[333104372,1721869840691,-500.0,0.00013698,2]
[333104374,1721869840701,-1629.3,0.00013698,2]
[333104376,1721869840710,-1252.06,0.00013698,2]
[333104377,1721869840720,-500.0,0.00013698,2]
[333104379,1721869840730,-547.02,0.00013698,2]
[333104381,1721869840740,-500.0,0.00013698,2]
[333104383,1721869840754,-500.0,0.00013698,2]
[333104385,1721869840770,-751.07,0.00013698,2]
[333104387,1721869840780,-535.48,0.00013698,2]
[333104389,1721869840791,-429.48027366,0.00013698,2]
[333104391,1721869840803,-500.0,0.00013698,2]
[333104393,1721869840818,-500.0,0.00013698,2]
[333104395,1721869840829,-500.0,0.00013698,2]
[333104396,1721869840839,-500.0,0.00013698,2]
[333104398,1721869840850,-1579.88,0.00013698,2]
[333104400,1721869840861,-500.0,0.00013698,2]
[333104402,1721869840871,-620.1,0.00013698,2]
[333104403,1721869840882,-1028.84,0.00013698,2]
[333104405,1721869840893,-500.0,0.00013698,2]
[333104406,1721869840904,-500.0,0.00013698,2]
[333104407,1721869840914,-500.0,0.00013698,2]
[333104409,1721869840924,-1748.61,0.00013698,2]
[333104410,1721869840935,-500.0,0.00013698,2]
[333104412,1721869840945,-1855.76,0.00013698,2]
[333104413,1721869840956,-500.0,0.00013698,2]
[333104414,1721869840965,-500.0,0.00013698,2]
[333104415,1721869840976,-500.0,0.00013698,2]
[333104416,1721869840986,-500.0,0.00013698,2]
[333104417,1721869840997,-500.0,0.00013698,2]
[333104418,1721869841007,-1034.34,0.00013698,2]
[333104419,1721869841017,-500.0,0.00013698,2]
[333104420,1721869841027,-987.79,0.00013698,2]
[333104421,1721869841038,-500.0,0.00013698,2]
[333104422,1721869841048,-500.0,0.00013698,2]
[333104423,1721869841063,-500.0,0.00013698,2]
[333104424,1721869841073,-500.0,0.00013698,2]
[333104425,1721869841083,-501.53042656,0.00013698,2]
[333104426,1721869841094,-500.0,0.00013698,2]
[333104427,1721869841104,-5187.84,0.00013698,2]
[333104428,1721869841114,-500.0,0.00013698,2]
[333104429,1721869841124,-1740.18,0.00013698,2]
[333104430,1721869841134,-2379.61,0.00013698,2]
[333104431,1721869841146,-935.88,0.00013698,2]
[333104432,1721869841157,-683.96,0.00013698,2]
[333104433,1721869841167,-1909.42,0.00013698,2]
[333104434,1721869841180,-1871.48,0.00013698,2]
[333104435,1721869841191,-590.68,0.00013698,2]
[333104436,1721869841201,-1640.72,0.00013698,2]
[333104437,1721869841212,-500.0,0.00013698,2]
[333104438,1721869841224,-500.0,0.00013698,2]
[333104440,1721869841237,-500.0,0.00013698,2]
[333104442,1721869841248,-500.0,0.00013698,2]
[333104443,1721869841259,-1324.61,0.00013698,2]
[333104445,1721869841269,-772.69,0.00013698,2]
[333104451,1721869841518,-4691.2,0.00013698,2]
[333104452,1721869841528,-8866.82,0.00013698,2]
[333104453,1721869841539,-500.0,0.00013698,2]
[333104454,1721869841548,-500.0,0.00013698,2]
[333104455,1721869841558,-847.81,0.00013698,2]
[333104456,1721869841572,-500.0,0.00013698,2]
[333104457,1721869841581,-1371.6,0.00013698,2]
[333104458,1721869841592,-672.61,0.00013698,2]
[333104459,1721869841602,-8361.26,0.00013698,2]
[333104460,1721869841614,-500.0,0.00013698,2]
[333104461,1721869841624,-500.0,0.00013698,2]
[333104462,1721869841633,-1555.85,0.00013698,2]
[333104463,1721869841643,-500.0,0.00013698,2]
[333104464,1721869841652,-500.0,0.00013698,2]
[333104465,1721869841661,-500.0,0.00013698,2]
[333104466,1721869841671,-1914.67,0.00013698,2]
[333104467,1721869841682,-1121.71,0.00013698,2]
[333104468,1721869841692,-500.0,0.00013698,2]
[333104469,1721869841702,-3761.89,0.00013698,2]
[333104470,1721869841712,-654.74,0.00013698,2]
[333104471,1721869841722,-500.0,0.00013698,2]
[333104472,1721869841733,-500.0,0.00013698,2]
[333104473,1721869841747,-649.64,0.00013698,2]
[333104474,1721869841758,-3896.63,0.00013698,2]
[333104475,1721869841768,-1018.63,0.00013698,2]
[333104476,1721869841779,-1455.21,0.00013698,2]
[333104477,1721869841792,-575.14970985,0.00013698,2]
[333104478,1721869841803,-822.66,0.00013698,2]
[333104479,1721869841820,-2770.6,0.00013698,2]
[333104480,1721869841831,-2770.6,0.00013698,2]
[333104481,1721869841842,-2770.6,0.00013698,2]
[333104482,1721869841852,-2770.6,0.00013698,2]
[333104483,1721869841864,-2770.6,0.00013698,2]
[333104484,1721869841874,-2770.6,0.00013698,2]
[333104485,1721869841885,-2770.6,0.00013698,2]
[333104486,1721869841897,-2770.6,0.00013698,2]
[333104487,1721869841908,-2770.6,0.00013698,2]
[333104488,1721869841919,-2770.6,0.00013698,2]
[333104489,1721869841930,-500.0,0.00013698,2]
[333104490,1721869841940,-500.0,0.00013698,2]
[333104491,1721869841951,-624.83,0.00013698,2]
[333104492,1721869841962,-635.75,0.00013698,2]
[333104493,1721869841972,-440.50180681,0.00013698,2]
[333104494,1721869841983,-566.88,0.00013698,2]
[333104495,1721869841993,-500.0,0.00013698,2]
[333104496,1721869842003,-500.0,0.00013698,2]
[333104497,1721869842013,-500.0,0.00013698,2]
[333104498,1721869842023,-500.0,0.00013698,2]
[333104499,1721869842033,-500.0,0.00013698,2]
[333104500,1721869842043,-500.0,0.00013698,2]
[333104501,1721869842054,-500.0,0.00013698,2]
[333104502,1721869842067,-1993.85,0.00013698,2]
[333104503,1721869842077,-481.14625723,0.00013698,2]
[333104504,1721869842087,-500.0,0.00013698,2]
[333104505,1721869842097,-500.85793297,0.00013698,2]
[333104506,1721869842113,-1.74786428,0.00013698,2]
[333104507,1721869842123,-500.0,0.00013698,2]
[333104508,1721869842133,-500.0,0.00013698,2]
[333104509,1721869842143,-764.19,0.00013698,2]
[333104510,1721869842154,-500.0,0.00013698,2]
[333104511,1721869842164,-500.0,0.00013698,2]
[333104512,1721869842174,-1670.6,0.00013698,2]
[333104513,1721869842184,-500.0,0.00013698,2]
[333104514,1721869842195,-500.0,0.00013698,2]
[333104515,1721869842205,-2497.06,0.00013698,2]
[333104516,1721869842216,-500.0,0.00013698,2]
[333104517,1721869842226,-503.59785011,0.00013698,2]
[333104518,1721869842236,-711.97,0.00013698,2]
[333104519,1721869842246,-500.0,0.00013698,2]
[333104520,1721869842256,-500.0,0.00013698,2]
[333104521,1721869842266,-1427.99,0.00013698,2]
[333104522,1721869842276,-830.2092504,0.00013698,2]
[333104523,1721869842289,-1232.8007496,0.00013698,2]
[333104524,1721869842298,-1173.6,0.00013698,2]
[333104525,1721869842310,-1482.7992504,0.00013698,2]
[333104526,1721869842328,-1212.8207496,0.00013698,2]
[333104527,1721869842338,-500.0,0.00013698,2]
[333104528,1721869842347,-500.0,0.00013698,2]
[333104529,1721869842360,-913.79,0.00013698,2]
[333104530,1721869842369,-500.0,0.00013698,2]
[333104531,1721869842380,-1548.21,0.00013698,2]
[333104532,1721869842391,-500.0,0.00013698,2]
[333104533,1721869842401,-500.0,0.00013698,2]
[333104534,1721869842411,-1301.44,0.00013698,2]
[333104535,1721869842421,-500.0,0.00013698,2]
[333104536,1721869842431,-500.0,0.00013698,2]
[333104537,1721869842442,-500.0,0.00013698,2]
[333104538,1721869842454,-10248.48,0.00013698,2]
[333104539,1721869842465,-500.0,0.00013698,2]
[333104540,1721869842475,-500.0,0.00013698,2]
[333104541,1721869842486,-500.0,0.00013698,2]
[333104542,1721869842498,-500.0,0.00013698,2]
[333104543,1721869842508,-500.0,0.00013698,2]
[333104544,1721869842520,-500.0,0.00013698,2]
[333104545,1721869842531,-719.76,0.00013698,2]
[333104546,1721869842541,-500.0,0.00013698,2]
[333104547,1721869842553,-273.02582686,0.00013698,2]
[333104548,1721869842566,-500.0,0.00013698,2]
[333104549,1721869842576,-762.18,0.00013698,2]
[333104550,1721869842587,-762.18,0.00013698,2]
[333104551,1721869842598,-762.18,0.00013698,2]
[333104552,1721869842607,-762.18,0.00013698,2]
[333104553,1721869842617,-762.18,0.00013698,2]
[333104554,1721869842629,-762.18,0.00013698,2]
[333104555,1721869842640,-762.18,0.00013698,2]
[333104556,1721869842650,-762.18,0.00013698,2]
[333104557,1721869842661,-762.18,0.00013698,2]
[333104558,1721869842672,-762.18,0.00013698,2]
[333104559,1721869842685,-762.18,0.00013698,2]
[333104560,1721869842695,-762.18,0.00013698,2]
[333104561,1721869842704,-762.18,0.00013698,2]
[333104562,1721869842713,-762.18,0.00013698,2]
[333104563,1721869842722,-500.0,0.00013698,2]
[333104564,1721869842732,-762.18,0.00013698,2]
[333104565,1721869842742,-762.18,0.00013698,2]
[333104567,1721869842756,-762.18,0.00013698,2]
[333104569,1721869842766,-383.67073235,0.00013698,2]
[333104571,1721869842776,-762.18,0.00013698,2]
[333104572,1721869842785,-762.18,0.00013698,2]
[333104573,1721869842798,-762.18,0.00013698,2]
[333104576,1721869842811,-762.18,0.00013698,2]
[333104578,1721869842820,-762.18,0.00013698,2]
[333104579,1721869842833,-762.18,0.00013698,2]
[333104580,1721869842843,-762.28396376,0.00013698,2]
[333104581,1721869842852,-12546.53,0.00013698,2]
[333104582,1721869842862,-3621.12,0.00013698,2]
[333104583,1721869842873,-2053.7,0.00013698,2]
[333104584,1721869842883,-1576.27,0.00013698,2]
[333104586,1721869842892,-500.0,0.00013698,2]
[333104588,1721869842902,-500.0,0.00013698,2]
[333104590,1721869842912,-513.33275701,0.00013698,2]
[333104591,1721869842924,-4171.39,0.00013698,2]
[333104592,1721869842935,-500.0,0.00013698,2]
[333104593,1721869842944,-500.0,0.00013698,2]
[333104595,1721869842955,-500.0,0.00013698,2]
[333104597,1721869842966,-500.0,0.00013698,2]
[333104599,1721869842976,-500.0,0.00013698,2]
[333104602,1721869842986,-862.73,0.00013698,2]
[333104605,1721869842996,-5966.46,0.00013698,2]
[333104607,1721869843007,-500.0,0.00013698,2]
[333104609,1721869843016,-500.0,0.00013698,2]
[333104611,1721869843026,-500.0,0.00013698,2]
[333104612,1721869843035,-500.0,0.00013698,2]
[333104614,1721869843045,-500.0,0.00013698,2]
[333104617,1721869843057,-260.66608731,0.00013698,2]
[333104619,1721869843067,-500.0,0.00013698,2]
[333104621,1721869843081,-500.0,0.00013698,2]
[333104623,1721869843092,-575.91559091,0.00013698,2]
[333104625,1721869843102,-500.0,0.00013698,2]
[333104627,1721869843111,-500.0,0.00013698,2]
[333104628,1721869843120,-500.0,0.00013698,2]
[333104630,1721869843131,-500.0,0.00013698,2]
[333104631,1721869843142,-401.11625069,0.00013698,2]
[333104632,1721869843152,-500.0,0.00013698,2]
[333104634,1721869843163,-500.0,0.00013698,2]
[333104637,1721869843173,-500.0,0.00013698,2]
[333104639,1721869843183,-500.0,0.00013698,2]
[333104641,1721869843195,-500.0,0.00013698,2]
[333104642,1721869843205,-500.0,0.00013698,2]
[333104644,1721869843214,-500.0,0.00013698,2]
[333104645,1721869843224,-500.0,0.00013698,2]
[333104646,1721869843234,-500.0,0.00013698,2]